[Event "RUDAR VI-GM 2024"]
[Site "Pozarevac"]
[Date "2024.02.12"]
[Round "6.3"]
[White "Apaar Saxena"]
[Black "Volkov, Dmitriy"]
[Result "1-0"]
[ECO "E68"]
[WhiteElo "2150"]
[BlackElo "2268"]
[Annotator "RC"]
[PlyCount "43"]
[EventDate "2024.02.12"]
[EventType "tourn"]
[EventCountry "SRB"]
[SourceTitle "playchess.com"]
[Source "ChessBase"]
[SourceQuality "1"]
[TimeControl "5400+30"]

1. d4 {[%emt 0:00:04]} Nf6 {[%emt 0:00:04]} 2. c4 {[%emt 0:00:08]} g6 {[%emt 0:00:03]} 3. g3 {[%emt 0:00:05]} Bg7 {[%emt 0:00:04]} 4. Bg2 {[%emt 0:00:06]} O-O {[%emt 0:00:07]} 5. Nc3 {[%emt 0:00:04]} d6 {[%emt 0:00:06]} 6. Nf3 {[%emt 0:00:05]} Nbd7 {[%emt 0:00:04]} 7. O-O {[%emt 0:00:08]} e5 {[%emt 0:00:04]} 8. e4 {[%emt 0:00:04]} exd4 {[%emt 0:00:08]} 9. Nxd4 {[%emt 0:00:07]} Re8 {[%emt 0:00:07]} 10. Re1 {[%emt 0:00:05]} Nc5 {[%emt 0:00:07]} 11. Rb1 {[%emt 0:01:57]} a5 {[%emt 0:02:32]} 12. Ndb5 {[%emt 0:03:07]} Bd7 {[%emt 0:09:46]} 13. Bf4 {[%emt 0:00:55]} Ng4 {[%emt 0:35:52]} 14. Nd5 {[%emt 0:29:47]} Rc8 {[%emt 0:03:58]} 15. Nbxc7 {[%emt 0:02:46]} Rxc7 {[%emt 0:00:08]} 16. Nxc7 {[%emt 0:00:05]} Qxc7 {[%emt 0:00:04]} 17. Bxd6 {[%emt 0:00:08]} Qc8 {[%emt 0:16:12]} 18. Bxc5 {[%emt 0:00:32]} Qxc5 {[%emt 0:00:04]} 19. Qxd7 {[%emt 0:00:16]} Nxf2 {[%emt 0:00:48]} 20. Qxe8+ {[%emt 0:01:52]} Bf8 {[%emt 0:00:03]} 21. Re2 {[%emt 0:01:19]} Nh3+ {[%emt 0:02:22]} 22. Kh1 {[%emt 0:00:05]} 1-0

[Event "RUDAR VI-GM 2024"]
[Site "Pozarevac"]
[Date "2024.02.12"]
[Round "6.4"]
[White "Zemlyanskii, Ivan"]
[Black "Velpula Sarayu"]
[Result "1-0"]
[ECO "E99"]
[WhiteElo "2492"]
[BlackElo "2444"]
[Annotator "TA"]
[PlyCount "71"]
[EventDate "2024.02.12"]
[EventType "tourn"]
[EventCountry "SRB"]
[SourceTitle "playchess.com"]
[Source "ChessBase"]
[SourceQuality "1"]
[TimeControl "5400+30"]

{[%evp 23,71,56,61,51,65,51,64,57,48,50,83,60,103,0,0,-12,-10,-12,98,103,104,90,192,202,352,347,343,381,481,451,497,338,316,328,314,245,409,405,424,414,420,420,398,409,382,292,331,323,753,758]} 1. d4 {[%emt 0:00:02]} Nf6 {[%emt 0:00:24]} 2. c4 {[%emt 0:00:04]} g6 {[%emt 0:00:31]} 3. Nc3 {[%emt 0:00:03]} Bg7 {[%emt 0:00:30]} 4. e4 {[%emt 0:00:04]} d6 {[%emt 0:00:30]} 5. Nf3 {[%emt 0:00:05][%cal Bg1f3,Bf3e1,Be1d3][%mdl 32]} O-O {[%emt 0:00:30]} 6. Be2 {[%emt 0:00:02]} e5 {[%emt 0:00:28]} 7. O-O {[%emt 0:00:04]} Nc6 {[%emt 0:00:28]} 8. d5 {[%emt 0:00:06]} Ne7 {[%emt 0:00:31]} 9. Ne1 {[%emt 0:00:08]} Nd7 {[%emt 0:00:31]} 10. Nd3 {[%emt 0:00:06]} f5 {[%emt 0:00:30]} 11. f3 {[%emt 0:00:04]} f4 {[%emt 0:00:29]} 12. b4 {[%emt 0:00:04]} g5 {[%emt 0:00:31]} 13. c5 {[%emt 0:00:05]} Nf6 {[%emt 0:00:31]} 14. a4 {[%emt 0:00:03][%cal Ba2a4,Ba4a5][%mdl 32]} h5 {[%emt 0:00:32]} 15. a5 {[%emt 0:00:03] White is slightly better.} Ng6 {[%emt 0:00:30]} 16. Nf2 {[%emt 0:00:07]} Kh8 {[%emt 0:00:43]} 17. Kh1 {[%emt 0:00:15]} Rf7 {[%emt 0:00:18]} 18. c6 {[%emt 0:00:09]} ({White should try} 18. a6 $16) 18... bxc6 $11 {[%emt 0:02:06]} 19. dxc6 {[%emt 0:00:01]} a6 {[%emt 0:00:12]} 20. Rg1 {[%emt 0:01:56] [#]} g4 {[%emt 0:16:19]} 21. fxg4 $16 {[%emt 0:06:43] White has more active pieces. White now steadily converts the win.} hxg4 {[%emt 0:00:29]} 22. Nxg4 {[%emt 0:01:04]} Bf8 {[%emt 0:00:59]} (22... Nh5 $16 23. g3 Be6) 23. g3 $18 {[%emt 0:05:20][%cal Bg2g3,Bg3f4][%mdl 32]} Rh7 {[%emt 0:12:37]} (23... Be6 $142 24. Nxf6 Qxf6) 24. Nxf6 {[%emt 0:14:20]} Qxf6 {[%emt 0:00:15]} 25. Nd5 {[%emt 0:00:05]} Qg5 {[%emt 0:10:25]} 26. gxf4 {[%emt 0:11:31]} Qh6 {[%emt 0:25:11]} 27. Rg2 {[%emt 0:00:37][%cal Bg1g2,Bg2f2,Bf2h2][%mdl 32]} Bh3 {[%emt 0:00:19] [#]} 28. Rf2 {[%emt 0:04:11] fxe5 is the strong threat.} Qh4 {[%emt 0:00:23]} 29. Qg1 {[%emt 0:02:45]} Bh6 $2 {[%emt 0:00:23]} (29... Ne7 30. Ra3 (30. Nxc7 Rg7 $11) 30... Nxd5) 30. Qg3 {[%emt 0:12:29]} Qxg3 {[%emt 0:00:44]} 31. hxg3 {[%emt 0:02:27][%cal Bh2g3,Bg3g4][%mdl 32]} Bg7 {[%emt 0:00:10]} 32. Rh2 {[%emt 0:07:39]} (32. Nxc7 Rc8 33. f5 (33. Nxa6 exf4 34. Ra3 Rxc6 $15) 33... Bxf5+ 34. Kg1 Bxe4 $11) 32... exf4 {[%emt 0:03:27]} 33. Ra3 {[%emt 0:00:02]} (33. Nxc7 $2 fxg3 (33... Bxa1 $2 34. Nxa8 fxg3 35. Rxh3 $19) 34. Ra3 (34. Nxa8 $2 gxh2 $19) 34... gxh2 $19 (34... Bg2+ 35. Kxg2 Rxh2+ 36. Kxg3 $19)) 33... f3 {[%emt 0:04:27]} 34. Bxf3 {[%emt 0:02:47]} Ne5 {[%emt 0:00:07]} 35. Be2 {[%emt 0:01:46]} (35. Nxc7 Rc8 36. Nd5 (36. Nxa6 Rxc6 $11) 36... Rxc6 $11) (35. Bg2 Bxg2+ 36. Kxg2 Rxh2+ 37. Kxh2 Nxc6 38. Nxc7 Rc8 $16) 35... Nxc6 $2 {[%emt 0:01:31]} (35... Ng4) 36. g4 {[%emt 0:01:21] Weighted Error Value: White=0.30/Black=0.39.  Mistake:       	White=1     	Black=5      Inaccurate:     	White=1     	Black=2      OK:         	White=10    	Black=9      Best:        	White=4     	Black=1} ({Less strong is} 36. Nxc7 Rc8 $16) 1-0

[Event "RUDAR VI-GM 2024"]
[Site "Pozarevac"]
[Date "2024.02.12"]
[Round "6.5"]
[White "Grover, Sahaj"]
[Black "Sutormin, Danila"]
[Result "1-0"]
[ECO "A65"]
[WhiteElo "2503"]
[BlackElo "2353"]
[Annotator "TA"]
[PlyCount "67"]
[EventDate "2024.02.12"]
[EventType "tourn"]
[EventCountry "SRB"]
[SourceTitle "playchess.com"]
[Source "ChessBase"]
[SourceQuality "1"]
[TimeControl "5400+30"]

{[%evp 20,67,36,33,56,16,21,0,15,0,0,-6,-8,3,8,-10,9,0,112,42,86,79,65,70,322,307,318,311,320,312,312,313,300,273,350,361,364,360,504,485,495,481,456,458,433,394,1997,1970,29990,29987]} 1. d4 {[%emt 0:00:02]} Nf6 {[%emt 0:07:11]} 2. c4 {[%emt 0:00:02]} g6 {[%emt 0:00:07]} 3. Nc3 {[%emt 0:00:05]} Bg7 {[%emt 0:00:07]} 4. e4 {[%emt 0:00:06]} d6 {[%emt 0:00:06]} 5. f3 {[%emt 0:00:05]} O-O {[%emt 0:00:12]} 6. Nge2 {[%emt 0:00:04]} c5 {[%emt 0:00:32]} 7. d5 {[%emt 0:00:12]} e6 {[%emt 0:00:18]} 8. Ng3 {[%emt 0:00:06]} exd5 {[%emt 0:00:11]} 9. cxd5 {[%emt 0:00:05]} a6 {[%emt 0:00:33]} 10. a4 {[%emt 0:00:05]} Nbd7 {[%emt 0:00:22]} 11. Be2 {[%emt 0:00:07]} Rb8 {[%emt 0:00:39]} 12. O-O {[%emt 0:00:08]} Ne8 {[%emt 0:01:03]} 13. f4 {[%emt 0:00:06][%cal Bf3f4,Bf4f5][%mdl 32]} Nc7 {[%emt 0:01:25] The position is equal.} 14. Kh1 {[%emt 1:36:17]} b5 {[%emt 0:14:28]} 15. e5 {[%emt 0:00:00]} dxe5 {[%emt 0:00:17]} 16. f5 {[%emt 0:00:00]} bxa4 {[%emt 0:11:11]} 17. d6 {[%emt 0:00:00]} Ne8 {[%emt 0:22:23]} 18. Nce4 {[%emt 0:00:00]} (18. Rxa4 Nb6 19. d7 Nxd7 $17 (19... Bxd7 20. Rxa6 Nc7 21. Ra5 $11) (19... Qxd7 20. Qxd7 Nxd7 21. fxg6 $11)) 18... Rb4 {[%emt 0:01:04] [#]} (18... Nef6 $11) 19. Bg5 {[%emt 0:00:00]} (19. fxg6 $1 $16 hxg6 20. Bg5 (20. Rxa4 Qb6 $16)) 19... Ndf6 {[%emt 0:11:16]} 20. fxg6 {[%emt 0:00:00]} fxg6 {[%emt 0:01:40]} 21. Rxa4 {[%emt 0:00:00] White is much more active.} (21. Nxc5 Qxd6 22. Nd3 Rb5 $11) 21... Qb6 $2 {[%emt 0:15:33][%mdl 8192] This costs Black the game.} ({Black should try} 21... Kh8 $14) 22. Rxb4 {[%emt 0:00:00]} cxb4 {[%emt 0:01:48]} 23. Nxf6+ {[%emt 0:00:00]} Nxf6 {[%emt 0:01:40]} 24. Bc4+ {[%emt 0:00:00]} Kh8 {[%emt 0:00:04]} 25. Bxf6 {[%emt 0:00:00]} Bxf6 {[%emt 0:00:29]} 26. Ne4 {[%emt 0:00:00]} Bf5 {[%emt 0:03:01]} 27. Nxf6 {[%emt 0:00:00]} Rxf6 {[%emt 0:00:02]} 28. Qd5 {[%emt 0:00:00]} Qd8 {[%emt 0:03:30] Prevents Qg8+} 29. g4 {[%emt 0:00:00] [#] Strongly threatening Rxf5.} (29. Bxa6 Qxd6 (29... Rxd6 30. Qxe5+ Qf6 31. Qxf6+ Rxf6 32. Bd3 $11) 30. Qa8+ Rf8 $17) 29... Be4+ {[%emt 0:03:09]} (29... Bd7 30. Rxf6 (30. Bxa6 $2 Qb6 $19) 30... Qe8 31. Kg1 (31. Bxa6 Kg7 $18) (31. Rf7 Bc6 $18) 31... Bc6 32. d7 (32. Re6 Bxd5 33. Rxe8+ Kg7 34. d7 Bxc4 35. d8=Q Kh6 36. Qf6 Be6 37. Rxe6 a5 38. h4 b3 39. Qf8#) 32... Bxd7 33. Rf8+ (33. Bxa6 Kg7 $18) 33... Kg7 34. Rxe8 Bxg4 35. Re7+ (35. Qxe5+ Kh6 36. Qe3+ Kg7 37. Re7+ Kf8 38. Rf7+ Kg8 39. Qe8#) 35... Kh6 36. Qd2+ (36. Bxa6 Bh3 37. Qxe5 Bf5 38. Qf4+ g5 39. Qxf5 Kh5 40. Rxh7#) 36... g5 37. h4 Kh5 38. Qxg5#) 30. Qxe4 {[%emt 0:00:00] Rxf6 would kill now.} Rxf1+ {[%emt 0:00:02]} 31. Bxf1 {[%emt 0:00:00]} Qxd6 {[%emt 0:00:05]} 32. g5 {[%emt 0:00:00] aiming for Bc4.} Qe7 $2 {[%emt 0:01:20]} (32... Kg7 33. Qb7+ Kf8 34. Qxa6 (34. Qxh7 Qd5+ 35. Kg1 Qd4+ 36. Kg2 Qg4+ 37. Kh1 Qf3+ 38. Kg1 Qe3+ 39. Kg2 Qe4+ 40. Kf2 Qf4+ 41. Ke1 Qc1+ 42. Kf2 Qf4+ 43. Ke2 Qc4+ 44. Kd2 Qf4+ 45. Ke1 Qc1+ 46. Kf2 Qf4+ $11) 34... Qd8) 33. h4 $18 {[%emt 0:00:00]} Qc5 {[%emt 0:00:25]} 34. Bc4 {[%emt 0:00:00] Weighted Error Value: White=0.10 (very precise) /Black=0.86.  Loses game:     	---       	Black=1      Mistake:       	White=1     	Black=2      Inaccurate:     	White=1     	Black=3      OK:         	White=8     	Black=6      Best:        	White=3     	Black=2} 1-0

[Event "RUDAR VI-GM 2024"]
[Site "Pozarevac"]
[Date "2024.02.13"]
[Round "7.1"]
[White "Sutormin, Danila"]
[Black "Krishna Teja, N."]
[Result "1-0"]
[ECO "B03"]
[WhiteElo "2353"]
[BlackElo "2349"]
[Annotator "TA"]
[PlyCount "58"]
[EventDate "2024.02.12"]
[EventType "tourn"]
[EventCountry "SRB"]
[SourceTitle "playchess.com"]
[Source "ChessBase"]
[SourceQuality "1"]
[TimeControl "5400+30"]

{[%evp 27,58,27,30,37,43,58,29,48,44,34,68,32,23,28,124,138,354,360,377,373,372,365,415,394,407,284,598,588,604,579,591,577,29994]} 1. e4 {[%emt 0:01:04][%cal Be2e4,Be4e5][%mdl 32]} Nf6 {[%emt 0:18:43][%cal Bg8f6,Bf6d5,Bd5b6][%mdl 32]} 2. e5 {[%emt 0:00:14]} Nd5 {[%emt 0:00:05]} 3. d4 {[%emt 0:00:19]} d6 {[%emt 0:00:04]} 4. c4 {[%emt 0:00:10]} Nb6 {[%emt 0:00:03]} 5. f4 {[%emt 0:00:05]} dxe5 {[%emt 0:00:04]} 6. fxe5 {[%emt 0:00:07]} Bf5 {[%emt 0:00:03]} 7. Nc3 {[%emt 0:00:19]} e6 {[%emt 0:00:05]} 8. Be3 {[%emt 0:00:14]} Be7 {[%emt 0:01:24]} 9. Nf3 {[%emt 0:00:25]} O-O {[%emt 0:00:23]} 10. Be2 {[%emt 0:00:22]} Nc6 {[%emt 0:01:36]} 11. O-O {[%emt 0:00:10]} f6 {[%emt 0:01:03]} 12. exf6 {[%emt 0:00:06]} Bxf6 {[%emt 0:00:02]} 13. Qd2 {[%emt 0:00:17]} Qe7 {[%emt 0:01:48]} 14. Rad1 {[%emt 0:03:01]} Rad8 {[%emt 0:00:22]} 15. Kh1 {[%emt 0:02:09]} Bg4 {[%emt 0:08:29]} 16. Ne4 {[%emt 0:04:09]} Bxf3 {[%emt 0:01:29]} 17. Nxf6+ {[%emt 0:00:38] White has an edge.} (17. Bxf3 $2 {is the wrong capture.} Nxc4 18. Nxf6+ Qxf6 $19) 17... Rxf6 {[%emt 0:01:41]} 18. gxf3 {[%emt 0:02:16][%cal Bg2f3,Bf3e4,Be4d5][%mdl 32]} Rf5 {[%emt 0:07:37][%cal Oc6d4]} 19. Qc2 {[%emt 0:20:42][%cal Od4d5]} Qf6 {[%emt 0:01:31]} 20. Qe4 {[%emt 0:02:54]} Ra5 {[%emt 0:06:06]} (20... Nc8 $11) 21. Rg1 $16 {[%emt 0:13:01]} Qf5 $2 {[%emt 0:03:29] [#] This costs Black the game.} (21... Rxa2 $2 {loses.} 22. Bg5 Qf7 23. Bxd8 Nxd8 24. d5 exd5 25. cxd5 $18) (21... Rf5 $16 22. f4 Qf7) 22. d5 $1 $18 {[%emt 0:04:00][%mdl 512]} Qxe4 {[%emt 0:03:55]} 23. fxe4 {[%emt 0:00:11]} exd5 {[%emt 0:00:05]} 24. exd5 {[%emt 0:06:02]} ({Don't play} 24. cxd5 Ne5 25. Bd4 Nbd7 $18) 24... Ne7 {[%emt 0:02:45]} 25. Bd4 {[%emt 0:12:27]} g6 {[%emt 0:03:22]} 26. Rdf1 {[%emt 0:01:28] [#] Wards off Nf5. Strongly threatening Bg4.} Nd7 $2 {[%emt 0:01:23]} (26... Ra6 {is a better chance.} 27. Bf6 Re8) 27. Bg4 {[%emt 0:06:40][%cal Rg4e6] This pair of bishops is nice. White is clearly winning.} Nf8 {[%emt 0:00:19] Black is weak on the dark squares} 28. Re1 {[%emt 0:05:11]} Re8 {[%emt 0:02:30]} 29. Re3 {[%emt 0:02:21] aiming for Rge1.} Rb8 {[%emt 0:04:02] Weighted Error Value: White=0.13 (very precise) /Black=0.58.  Loses game:     	---       	Black=1      Mistake:       	---       	Black=2      Inaccurate:     	White=2     	Black=2      OK:         	White=7     	Black=3      Best:        	---       	Black=2      Brilliant:      	White=1     	---} 1-0

[Event "RUDAR VI-GM 2024"]
[Site "Pozarevac"]
[Date "2024.02.13"]
[Round "7.2"]
[White "Velpula Sarayu"]
[Black "Grover, Sahaj"]
[Result "0-1"]
[ECO "C45"]
[WhiteElo "2444"]
[BlackElo "2503"]
[Annotator "TA"]
[PlyCount "84"]
[EventDate "2024.02.12"]
[EventType "tourn"]
[EventCountry "SRB"]
[SourceTitle "playchess.com"]
[Source "ChessBase"]
[SourceQuality "1"]
[TimeControl "5400+30"]

{[%evp 9,84,7,12,15,10,14,21,12,7,22,22,20,19,26,64,21,70,84,73,50,119,85,148,149,143,139,140,146,213,0,0,0,0,0,0,0,8,7,7,6,10,4,26,-5,-6,-82,-79,-68,-66,-69,-60,-87,-83,-86,-83,-82,-75,-85,-84,-80,0,-77,0,-19,-19,-105,-100,-117,-106,-105,-105,-116,-121,-122,-119,-136,-141]} 1. e4 {[%emt 0:04:44]} e5 {[%emt 0:00:06]} 2. Nf3 {[%emt 0:00:30]} Nc6 {[%emt 0:00:07]} 3. d4 {[%emt 0:00:21]} exd4 {[%emt 0:00:07]} 4. Nxd4 {[%emt 0:00:35]} Qf6 {[%emt 0:00:21]} 5. Nf3 {[%emt 0:00:28]} Bb4+ {[%emt 0:00:07]} 6. c3 {[%emt 0:00:33]} Bc5 {[%emt 0:00:06]} 7. Be2 {[%emt 0:00:29]} h6 {[%emt 0:00:23]} 8. O-O {[%emt 0:03:05] The position is equal.} Nge7 {[%emt 0:00:04]} 9. Qc2 {[%emt 0:02:25]} a5 {[%emt 0:00:40]} 10. Na3 {[%emt 0:03:28]} Bxa3 {[%emt 0:25:28]} 11. bxa3 {[%emt 0:00:09][%cal Of3d4]} Ng6 {[%emt 0:00:05]} 12. g3 {[%emt 0:03:03][%cal Of3d4]} b6 {[%emt 0:13:05] [#]} (12... O-O $11) 13. Nd4 $1 $14 {[%emt 0:03:18]} Bb7 {[%emt 0:01:49]} 14. Be3 {[%emt 0:05:37]} O-O-O {[%emt 0:15:56]} (14... O-O $14) 15. f4 {[%emt 0:12:59]} Rde8 {[%emt 0:18:15]} (15... h5 $142) 16. Bf3 $16 {[%emt 0:05:33]} Nxd4 {[%emt 0:00:06]} 17. cxd4 {[%emt 0:10:06]} (17. Bxd4 Qe7 $14) 17... Qc6 {[%emt 0:00:18]} 18. Qd3 {[%emt 0:05:21]} Rxe4 {[%emt 0:00:42]} (18... d5 $16 {keeps fighting.}) 19. Bxe4 $2 {[%emt 0:01:39]} (19. f5 $1 $18 {[%cal Oa1c1] Strongly threatening Rac1!} Ne7 20. Bf4 (20. Qxe4 Qxe4 21. Bxe4 Bxe4 $11) (20. d5 Rxe3 21. Qxe3 Nxd5 $14)) 19... Qxe4 $11 {[%emt 0:00:05]} 20. Qxe4 {[%emt 0:00:05]} Bxe4 {[%emt 0:00:03]} 21. f5 {[%emt 0:00:11]} Ne7 $36 {[%emt 0:00:20][%mdl 2048] Black has the initiative.} 22. f6 {[%emt 0:04:18]} gxf6 {[%emt 0:00:04]} 23. Rxf6 {[%emt 0:00:08]} Bg6 $1 {[%emt 0:00:04]} ({Much weaker is} 23... Nd5 24. Rxh6 Rg8 25. Bd2 $18) 24. Bd2 {[%emt 0:01:45]} Nf5 {[%emt 0:02:58]} 25. d5 {[%emt 0:06:37]} d6 {[%emt 0:00:51]} 26. Bc3 {[%emt 0:08:44][%cal Of6g6] Rxg6! is the strong threat.} Re8 {[%emt 0:01:06]} (26... Ne3 $2 27. Rf3 $18 (27. Rxg6 fxg6 28. Bxh8 Kd7 $18)) 27. Rd1 {[%emt 0:06:41]} (27. Rf1 $11 Ne7 28. Re1) 27... h5 $17 {[%emt 0:00:19][%mdl 1024] Black has strong compensation.} 28. Rd2 {[%emt 0:01:35]} Re3 {[%emt 0:01:11]} 29. Bb2 {[%emt 0:00:20]} Re4 {[%emt 0:00:22]} 30. Kf2 {[%emt 0:03:28]} Kd7 {[%emt 0:00:24]} 31. h3 {[%emt 0:01:12]} b5 {[%emt 0:05:15]} 32. Kf3 {[%emt 0:01:26]} Re1 {[%emt 0:00:37]} ({Not} 32... Ne3 $2 33. Rxg6 Nc4 34. Kxe4 $18) 33. Kf2 {[%emt 0:01:13]} Rh1 {[%emt 0:01:02]} 34. Kg2 {[%emt 0:00:45] [#] Prevents Rh2+.} Re1 {[%emt 0:02:24]} (34... Rb1 $1 $17 {Hoping for ...Ne3+.} 35. Kf2 Ne7) 35. Kf2 {[%emt 0:00:22] [#] Dodges Ne3} (35. g4 $11 {remains equal.} hxg4 36. hxg4) 35... Re8 {[%emt 0:00:17]} ({Black should play} 35... Rb1 $1 $17) 36. Bc3 {[%emt 0:01:23]} a4 {[%emt 0:02:42]} 37. Rd3 {[%emt 0:03:35]} (37. Ba5 $11) 37... Re4 {[%emt 0:00:37]} 38. Rd2 {[%emt 0:00:34]} Rc4 {[%emt 0:02:26]} 39. Bb2 {[%emt 0:00:06]} h4 {[%emt 0:00:58]} 40. gxh4 {[%emt 0:00:37]} Rxh4 {[%emt 0:00:21]} 41. Kg2 {[%emt 0:00:23]} Rh5 {[%emt 0:00:17]} 42. Bd4 {[%emt 0:00:48]} Ne7 {[%emt 0:01:05] Weighted Error Value: White=0.24 (precise) /Black=0.14 (very precise) .  Missed win:     	White=1     	---        Mistake:       	White=3     	Black=6      Inaccurate:     	White=3     	Black=1      OK:         	White=16    	Black=19     Best:        	---       	Black=1      Strong:       	---       	Black=1} 0-1

[Event "RUDAR VI-GM 2024"]
[Site "Pozarevac"]
[Date "2024.02.13"]
[Round "7.3"]
[White "Volkov, Dmitriy"]
[Black "Zemlyanskii, Ivan"]
[Result "0-1"]
[ECO "B72"]
[WhiteElo "2268"]
[BlackElo "2492"]
[Annotator "RC"]
[PlyCount "148"]
[EventDate "2024.02.12"]
[EventType "tourn"]
[EventCountry "SRB"]
[SourceTitle "playchess.com"]
[Source "ChessBase"]
[SourceQuality "1"]
[TimeControl "5400+30"]

1. e4 {[%emt 0:00:02]} c5 {[%emt 0:00:02]} 2. Nf3 {[%emt 0:00:05]} d6 {[%emt 0:00:03]} 3. d4 {[%emt 0:00:04]} cxd4 {[%emt 0:00:03]} 4. Nxd4 {[%emt 0:00:05]} Nf6 {[%emt 0:00:02]} 5. Nc3 {[%emt 0:00:07]} g6 {[%emt 0:00:03]} 6. Be3 {[%emt 0:00:08]} Nc6 {[%emt 0:00:03]} 7. f3 {[%emt 0:00:10]} h5 {[%emt 0:00:04]} 8. Qd2 {[%emt 0:00:44]} Nxd4 {[%emt 0:00:13]} 9. Bxd4 {[%emt 0:04:19]} Bh6 {[%emt 0:00:03]} 10. Bb5+ {[%emt 0:03:15]} Bd7 {[%emt 0:00:09]} 11. Qe2 {[%emt 0:00:43]} Bc6 {[%emt 0:01:23]} 12. Rd1 {[%emt 0:03:52]} Bg7 {[%emt 0:09:23]} 13. e5 {[%emt 0:05:46]} dxe5 {[%emt 0:01:00]} 14. Qxe5 {[%emt 0:00:36]} O-O {[%emt 0:04:34]} 15. Bxc6 {[%emt 0:05:11]} bxc6 {[%emt 0:00:32]} 16. O-O {[%emt 0:00:25]} Qd7 {[%emt 0:05:18]} 17. Rfe1 {[%emt 0:04:28]} Rfe8 {[%emt 1:16:05]} 18. Rd3 {[%emt 0:16:05]} Qb7 {[%emt 0:00:00]} 19. b3 {[%emt 0:05:50]} Rad8 {[%emt 0:00:00]} 20. Red1 {[%emt 0:04:52]} Rd7 {[%emt 0:00:00]} 21. Qa5 {[%emt 0:44:13]} Ra8 {[%emt 0:00:00]} 22. Be5 {[%emt 0:00:00]} Rxd3 {[%emt 0:00:00]} 23. Rxd3 {[%emt 0:00:00]} h4 {[%emt 0:00:00]} 24. Qc7 {[%emt 0:00:00]} Qxc7 {[%emt 0:00:00]} 25. Bxc7 {[%emt 0:00:00]} Ne8 {[%emt 0:00:00]} 26. Ba5 {[%emt 0:00:00]} Nd6 {[%emt 0:04:30]} 27. Ne4 {[%emt 0:00:00]} Nf5 {[%emt 0:00:00]} 28. Kf1 {[%emt 0:00:00]} Be5 {[%emt 0:00:00]} 29. h3 {[%emt 0:00:00]} Bd4 {[%emt 0:00:00]} 30. Ke2 {[%emt 0:00:00]} f6 {[%emt 0:00:00]} 31. c3 {[%emt 0:00:00]} Bb6 {[%emt 0:00:00]} 32. Bb4 {[%emt 0:00:00]} Rc8 {[%emt 0:00:00]} 33. Bc5 {[%emt 0:00:00]} Kf7 {[%emt 0:00:00]} 34. b4 {[%emt 0:00:00]} Bxc5 {[%emt 0:00:00]} 35. Nxc5 {[%emt 0:00:00]} Nd6 {[%emt 0:00:00]} 36. a4 {[%emt 0:00:00]} f5 {[%emt 0:00:00]} 37. a5 {[%emt 0:00:00]} g5 {[%emt 0:00:00]} 38. Rd4 {[%emt 0:00:00]} Nb5 {[%emt 0:00:00]} 39. Rd3 {[%emt 0:00:00]} Nd6 {[%emt 0:00:00]} 40. Rd4 {[%emt 0:00:00]} Rd8 {[%emt 0:00:00]} 41. c4 {[%emt 0:10:00]} e5 {[%emt 0:00:00]} 42. Rd1 {[%emt 0:00:00]} Ke7 {[%emt 0:00:00]} 43. Rc1 {[%emt 0:01:00]} Rb8 {[%emt 0:08:30]} 44. Na6 {[%emt 0:00:00]} Rg8 {[%emt 0:00:00]} 45. Kf2 {[%emt 0:00:00]} g4 {[%emt 0:00:00]} 46. hxg4 {[%emt 0:00:00]} fxg4 {[%emt 0:00:00]} 47. fxg4 {[%emt 0:00:00]} Rxg4 {[%emt 0:02:00]} 48. Nb8 {[%emt 0:00:00]} Ne4+ {[%emt 0:00:00]} 49. Kf3 {[%emt 0:00:00]} Rf4+ {[%emt 0:00:00]} 50. Ke3 {[%emt 0:00:00]} Kd6 {[%emt 0:00:00]} 51. b5 {[%emt 0:00:00]} cxb5 {[%emt 0:00:00]} 52. cxb5 {[%emt 0:00:00]} Nf6 {[%emt 0:00:00]} 53. Nc6 {[%emt 0:00:00]} Nd5+ {[%emt 0:00:00]} 54. Ke2 {[%emt 0:00:00]} Ra4 {[%emt 0:00:47]} 55. Nxa7 {[%emt 0:00:00]} Rxa5 {[%emt 0:00:17]} 56. b6 {[%emt 0:00:00]} e4 {[%emt 0:01:46]} 57. Rc6+ {[%emt 0:00:00]} Kd7 {[%emt 0:01:38]} 58. Rc4 {[%emt 0:00:00]} Ra2+ {[%emt 0:00:29]} 59. Ke1 {[%emt 0:00:00]} Ra1+ {[%emt 0:00:32]} 60. Kf2 {[%emt 0:04:03]} e3+ {[%emt 0:00:28]} 61. Ke2 {[%emt 0:01:02]} Ra2+ {[%emt 0:00:03]} 62. Ke1 {[%emt 0:00:07]} Rb2 {[%emt 0:00:49]} 63. Nc6 {[%emt 0:01:39]} Kd6 {[%emt 0:00:34]} 64. Nd4 {[%emt 0:00:26]} Rxb6 {[%emt 0:00:34]} 65. Nf5+ {[%emt 0:00:19]} Ke5 {[%emt 0:00:27]} 66. Nxh4 {[%emt 0:00:42]} Nf4 {[%emt 0:00:33]} 67. Nf3+ {[%emt 0:01:30]} Kf5 {[%emt 0:00:04]} 68. Nd4+ {[%emt 0:02:42]} Kg4 {[%emt 0:00:37]} 69. Ne2 {[%emt 0:00:00]} Rb1+ {[%emt 0:00:04]} 70. Nc1 {[%emt 0:00:00]} Kg3 {[%emt 0:00:29]} 71. Kd1 {[%emt 0:00:00]} Rb2 {[%emt 0:01:08]} 72. Rc2 {[%emt 0:00:00]} Rb1 {[%emt 0:00:23]} 73. Rc3 {[%emt 0:00:27]} Kf2 {[%emt 0:00:24]} 74. Kc2 {[%emt 0:00:28]} Rxc1+ {[%emt 0:00:05]} 0-1